bitfinex-derivatives/quotes_SOLF0:USTF0_20260202
["timestamp","ask_amount","ask_price","bid_price","bid_amount"]
[1769994445741,9.9252459,102.3,102.23,16.554382]
[1769994445938,28.8058,102.31,102.25,8.8101]
[1769994447044,156.9758,102.31,102.22,16.578942]
[1769994447344,9.9252459,102.3,102.22,16.578942]
[1769994448444,8.8077,102.28,102.22,16.578942]
[1769994448845,166.9099459,102.3,102.22,16.578942]
[1769994449046,137.0042,102.29,102.2,16.54598242]
[1769994449245,146.9362459,102.28,102.2,16.54598242]
[1769994449647,9.9252459,102.28,102.2,16.54598242]
[1769994449953,8.8085,102.28,102.21,16.54598242]
[1769994450243,8.8086,102.27,102.21,16.54598242]
[1769994450442,20.0,102.29,102.21,16.54598242]
[1769994450645,137.0097,102.28,102.21,16.54598242]
[1769994451037,8.8094,102.26,102.21,16.54598242]
[1769994451651,8.8086,102.27,102.21,16.54598242]
[1769994452144,8.8095,102.26,102.21,16.54598242]
[1769994452349,9.95950452,102.27,102.19,16.55041597]
[1769994452545,523.0964,102.26,102.19,16.55041597]
[1769994452744,527.1964,102.26,102.19,16.55041597]
[1769994452945,8.8111,102.25,102.19,16.55041597]
[1769994453147,8.8111,102.25,102.14,27.59850452]
[1769994453148,147.01060452,102.25,102.15,16.55041597]
[1769994453648,8.8128,102.23,102.15,16.55041597]
[1769994453858,137.0679,102.24,102.16,16.55041597]
[1769994454048,147.04170452,102.23,102.16,16.55041597]
[1769994454248,8.8141,102.21,102.16,16.55041597]
[1769994454451,137.1033,102.21,102.14,16.53945903]
[1769994454754,8.8165,102.18,102.12,16.53945903]
[1769994455245,8.8162,102.19,102.12,16.53945903]
[1769994455449,399.0162,102.19,102.12,16.53945903]
[1769994455754,8.8165,102.18,102.12,16.53945903]
[1769994456049,8.8165,102.18,102.05,127.08]
[1769994456050,137.158,102.17,102.06,137.2926]
[1769994456255,147.13240452,102.16,102.07,16.53945903]
[1769994456645,147.15680452,102.14,102.07,16.53945903]
[1769994456854,9.95950452,102.14,102.07,16.53945903]
[1769994457047,147.15660452,102.14,102.05,8.827]
[1769994457244,147.18380452,102.12,102.05,16.52059512]
[1769994457559,137.2644,102.09,102.02,16.52059512]
[1769994458247,147.23770452,102.08,101.99,16.52066315]
[1769994458451,137.2921,102.07,101.99,16.52066315]
[1769994458646,9.95950452,102.08,101.99,137.3976]
[1769994458849,137.2681,102.09,102.01,16.53451558]
[1769994458850,212.42,102.09,102.01,16.53451558]
[1769994459049,349.6862,102.09,102.01,16.53451558]
[1769994459250,137.3065,102.06,101.98,16.53451558]
[1769994459557,147.26600452,102.06,101.98,16.53451558]
[1769994459761,8.8311,102.01,101.94,16.53451558]
[1769994459948,306.66,102.02,101.94,16.53451558]
[1769994460154,306.66,102.02,101.95,16.53451558]
[1769994460348,147.26360452,102.07,101.97,16.50986323]
[1769994460549,527.765,102.06,101.97,16.50986323]
[1769994460853,137.3207,102.05,101.97,16.50986323]
[1769994461261,527.766,102.06,101.97,16.50986323]
[1769994461753,137.3734,102.01,101.94,16.50986323]
[1769994461956,137.3734,102.01,101.91,139.21240056]
[1769994461957,475.4869,102.0,101.91,16.50986323]
[1769994462156,338.1,102.0,101.91,162.85546323]
[1769994462358,390.6,102.0,101.92,16.51971276]
[1769994462656,527.9454,102.03,101.94,16.51971276]
[1769994462857,536.775,102.03,101.94,16.51971276]
[1769994463057,536.775,102.03,101.95,16.51971276]
[1769994463058,390.6,102.03,101.95,16.51971276]
[1769994463245,137.3457,102.03,101.95,16.51971276]
[1769994463450,390.66,102.04,101.95,16.51971276]
[1769994463864,527.9929,102.04,101.96,16.51971276]
[1769994464559,390.66,102.04,101.96,16.51971276]
[1769994465759,527.9926,102.04,101.96,16.51971276]
[1769994466053,390.66,102.04,101.96,16.51971276]
[1769994466258,399.4889,102.04,101.96,16.51971276]
[1769994466455,536.8209,102.04,101.96,16.51971276]
[1769994466657,536.8209,102.04,101.93,147.42620452]
[1769994466658,147.30620452,102.03,101.93,16.42245242]
[1769994466858,146.1906,102.02,101.93,16.42245242]
[1769994467656,8.8303,102.02,101.93,16.42245242]
[1769994467849,528.0042,102.04,101.9,16.42245242]
[1769994467850,147.35890452,101.99,101.9,16.42245242]
[1769994468052,390.86,101.98,101.9,16.42245242]
[1769994468950,137.4263,101.97,101.87,162.80762916]
[1769994469159,9.95950452,101.95,101.85,137.5858]
[1769994469349,147.41300452,101.95,101.85,154.00362916]
[1769994469656,18.79580452,101.95,101.85,154.00362916]
[1769994470057,156.25350452,101.95,101.85,162.84802916]
[1769994470256,9.95950452,101.93,101.85,16.41662916]
[1769994470563,390.98,101.92,101.83,154.03283075]
[1769994470860,390.98,101.92,101.84,154.01973075]
[1769994471058,390.98,101.92,101.85,16.41943075]
[1769994471259,391.04,101.91,101.83,137.6137]
[1769994471659,391.04,101.91,101.83,146.4602]
[1769994471967,400.99950452,101.91,101.83,16.41943075]
[1769994472155,391.04,101.91,101.83,16.41943075]
[1769994472466,391.04,101.91,101.82,140.40008636]
[1769994472762,391.04,101.91,101.82,156.83762459]
[1769994473162,391.04,101.91,101.84,16.43753823]
[1769994473366,391.04,101.91,101.85,16.43753823]
[1769994473961,391.04,101.91,101.82,19.21702459]
[1769994474264,391.04,101.91,101.83,16.43753823]
[1769994474462,528.5468,101.91,101.83,16.43753823]
[1769994474663,528.5468,101.91,101.76,16.45998457]
[1769994474664,137.6031,101.84,101.76,16.45998457]
[1769994474868,137.6031,101.84,101.71,380.5281644]
[1769994474869,137.5886,101.85,101.77,16.45998457]
[1769994475057,137.6047,101.84,101.77,16.45998457]
[1769994475366,307.62630452,101.86,101.77,16.45998457]
[1769994475570,312.12,101.85,101.77,16.45998457]
[1769994475766,449.7081,101.85,101.77,16.45998457]
[1769994476064,320.9653,101.85,101.77,16.45998457]
[1769994476265,137.6154,101.83,101.74,16.45998457]
[1769994476467,137.669,101.79,101.71,16.37605432]
[1769994476768,147.61660452,101.8,101.71,16.37605432]
[1769994477157,8.8505,101.79,101.71,16.37605432]
[1769994477361,147.61970452,101.8,101.71,16.37605432]
[1769994477566,137.6768,101.79,101.71,16.37605432]
[1769994477766,9.95950452,101.8,101.71,16.37605432]
[1769994477962,147.61590452,101.8,101.71,16.37605432]
[1769994478167,146.5222,101.79,101.71,16.37605432]
[1769994478368,137.7124,101.76,101.68,16.35778511]
[1769994478663,156.52180452,101.76,101.68,16.35778511]
[1769994479368,18.81090452,101.78,101.68,154.17018511]
[1769994479564,391.44,101.79,101.69,137.8007]
[1769994479868,391.44,101.79,101.71,137.7729]
[1769994480069,391.44,101.79,101.71,16.35778511]
[1769994480262,137.6842,101.78,101.68,16.35778511]
[1769994480461,9.95950452,101.77,101.68,16.35778511]
[1769994480662,147.74390452,101.71,101.6,157.04960471]
[1769994480868,9.95950452,101.71,101.62,137.8984]
[1769994481163,465.0638,101.72,101.63,16.35461835]
[1769994481368,529.3598,101.76,101.66,16.35461835]
[1769994481563,529.3598,101.76,101.67,137.8256]
[1769994481564,391.64,101.76,101.67,137.8256]
[1769994481965,529.3521,101.76,101.66,16.35461835]
[1769994482168,137.7274,101.75,101.66,16.35461835]
[1769994482375,147.71400452,101.73,101.63,154.25114981]
[1769994482873,391.64,101.76,101.67,154.19794981]
[1769994483070,391.64,101.76,101.68,137.8157]
[1769994483274,137.6707,101.79,101.69,16.36814981]
[1769994483476,539.39530452,101.8,101.7,16.36814981]
[1769994483883,137.6705,101.79,101.7,16.36814981]
[1769994484067,401.73950452,101.8,101.7,16.36814981]
[1769994484068,137.6828,101.78,101.7,16.36814981]
[1769994484272,137.6692,101.79,101.7,16.36814981]
[1769994484470,9.95950452,101.8,101.7,16.38445497]
[1769994484771,147.58640452,101.83,101.72,16.38445497]
[1769994484972,137.6287,101.82,101.72,154.14755497]
[1769994485173,137.6425,101.81,101.72,16.38445497]
[1769994485377,333.44,101.84,101.75,162.95685497]
[1769994485570,471.0445,101.84,101.73,154.12365497]
[1769994485775,137.6152,101.83,101.74,16.38445497]
[1769994486275,147.61510452,101.8,101.7,137.7835]
[1769994486470,9.95950452,101.8,101.7,154.06400759]
[1769994486673,147.61500452,101.8,101.7,162.92180759]
[1769994486974,147.61500452,101.8,101.71,154.05040759]
[1769994486975,176.87950452,101.8,101.71,154.05040759]
[1769994487174,166.92,101.8,101.71,154.05040759]
[1769994487677,313.425,101.8,101.71,25.13160759]
[1769994487979,146.505,101.8,101.71,25.13160759]
[1769994488179,538.4596,101.79,101.69,162.93573738]
[1769994488368,391.94,101.78,101.69,162.93573738]
[1769994488567,391.94,101.78,101.7,153.97399554]
[1769994488771,146.4908,101.81,101.72,16.18899554]
[1769994488968,8.8488,101.81,101.72,153.95149554]
[1769994489177,146.4779,101.82,101.73,25.04389554]
[1769994489775,8.848,101.82,101.73,25.04389554]
[1769994489973,146.4784,101.82,101.73,25.04389554]
[1769994490174,146.4942,101.81,101.73,16.18899554]
[1769994490578,9.95950452,101.8,101.7,16.17321484]
[1769994490775,286.8105,101.79,101.7,153.96331484]
[1769994491079,286.8105,101.79,101.7,162.82081484]
[1769994491274,410.78910452,101.8,101.71,153.94891484]
[1769994491473,410.78910452,101.8,101.73,16.17321484]
[1769994491474,391.98,101.8,101.73,16.17321484]
[1769994492374,392.0,101.82,101.74,16.16842663]
[1769994492578,392.0,101.82,101.74,153.90422663]
[1769994492781,137.6011,101.84,101.75,16.16842663]
[1769994492979,8.8478,101.82,101.75,16.16842663]
[1769994493482,529.6002,101.85,101.75,153.88992663]
[1769994493687,137.6147,101.83,101.75,16.16842663]
[1769994493973,137.6464,101.81,101.71,153.94222663]
[1769994494179,8.8495,101.8,101.71,25.02482663]
[1769994494577,298.01470452,101.8,101.71,16.16842663]
[1769994494782,8.8506,101.79,101.71,16.16842663]
[1769994494979,9.95950452,101.82,101.73,153.91335318]
[1769994495183,282.68,101.83,101.74,153.89965318]
[1769994495573,420.2951,101.83,101.74,16.16475318]
[1769994495775,282.68,101.83,101.75,162.73985318]
[1769994495982,558.8609,101.87,101.77,153.85975318]
[1769994496177,166.8409,101.87,101.77,153.85975318]
[1769994496375,337.14,101.87,101.77,16.16475318]
[1769994496583,307.86,101.87,101.79,16.16341478]
[1769994496886,307.86,101.87,101.8,8.8487]
[1769994497276,307.86,101.87,101.8,16.16341478]
[1769994497478,8.8442,101.86,101.78,8.8503]
[1769994497684,137.5897,101.85,101.77,16.16341478]
[1769994497885,8.8453,101.85,101.77,16.16341478]
[1769994498185,137.5888,101.85,101.77,16.16341478]
[1769994498486,18.80230452,101.88,101.79,24.99950528]
[1769994498785,8.8428,101.88,101.79,153.81630528]
[1769994499389,135.5,101.89,101.81,16.14960528]
[1769994499586,273.0342,101.89,101.81,16.14960528]
[1769994499788,135.5,101.89,101.81,16.14960528]
[1769994499986,8.8425,101.88,101.81,16.14960528]
[1769994501282,135.5,101.89,101.82,16.09706301]
[1769994501482,135.5,101.89,101.82,153.72476301]
[1769994501791,135.5,101.89,101.82,24.94436301]
[1769994501990,135.5,101.89,101.82,16.09706301]
[1769994502284,8.8407,101.9,101.82,24.94426301]
[1769994502990,8.842,101.89,101.82,16.09706301]
[1769994503289,147.46570452,101.92,101.82,153.72456301]
[1769994503487,147.46570452,101.92,101.82,16.09706301]
[1769994503881,137.5248,101.9,101.82,16.09706301]
[1769994504181,137.5351,101.89,101.8,16.08969671]
[1769994504381,8.8416,101.89,101.81,8.8481]
[1769994504588,137.5343,101.89,101.8,16.08969671]
[1769994504781,309.53960452,101.9,101.81,16.02569101]
[1769994504982,137.5341,101.89,101.81,16.02569101]
[1769994505187,172.01950452,101.9,101.81,16.02569101]
[1769994505387,309.54000452,101.9,101.81,16.02569101]
[1769994505587,8.8424,101.88,101.81,16.02569101]
[1769994505988,172.01950452,101.9,101.81,16.02569101]
[1769994506186,8.8417,101.89,101.81,24.87389101]
[1769994506383,137.5339,101.89,101.81,16.02569101]
[1769994506587,147.53480452,101.86,101.78,16.02461203]
[1769994506988,137.6011,101.84,101.75,16.02461203]
[1769994507194,147.56060452,101.84,101.75,16.02461203]
[1769994507585,147.58930452,101.82,101.72,153.78641203]
[1769994508091,147.58930452,101.82,101.73,16.02461203]
[1769994508289,147.58930452,101.82,101.68,138.5]
[1769994508290,147.61500452,101.8,101.71,8.8566]
[1769994508483,9.95950452,101.8,101.71,8.8566]
[1769994508785,157.12,101.83,101.7,137.78]
[1769994508786,147.57550452,101.83,101.73,16.03341201]
[1769994509089,137.6428,101.81,101.73,16.03341201]
[1769994509288,8.8494,101.8,101.73,16.03341201]
[1769994509684,137.6406,101.82,101.73,16.03341201]
[1769994511091,386.58,101.83,101.74,16.02578599]
[1769994511486,8.8478,101.82,101.74,24.87968599]
[1769994511686,9.95950452,101.84,101.75,153.74838599]
[1769994511995,264.6382,101.85,101.76,16.02578599]
[1769994512291,8.8468,101.83,101.74,16.02578599]
[1769994512494,8.8468,101.83,101.75,16.02138629]
[1769994513285,137.602,101.84,101.75,24.87478629]
[1769994513487,137.629,101.82,101.72,16.02138629]
[1769994513687,147.68816629,101.81,101.72,16.02138629]
[1769994513989,10.04276629,101.81,101.72,16.02138629]
[1769994514196,8.8504,101.79,101.72,16.02138629]
[1769994514790,176.96646629,101.81,101.72,16.02138629]
[1769994514989,137.6566,101.8,101.72,16.02138629]
[1769994515189,8.8504,101.79,101.72,16.02138629]
[1769994515593,448.56496629,101.81,101.72,16.02138629]
[1769994516185,300.88,101.81,101.73,16.02792732]
[1769994516489,137.6554,101.8,101.71,16.04470629]
[1769994516797,10.04276629,101.79,101.71,16.04470629]
[1769994517093,147.71206629,101.79,101.71,16.04470629]
[1769994517696,8.8511,101.78,101.71,16.04470629]
[1769994517893,10.04276629,101.79,101.71,153.82080629]
[1769994518092,10.04276629,101.79,101.71,16.04470629]
[1769994518991,8.8511,101.78,101.71,24.90150629]
[1769994519191,10.04276629,101.79,101.71,24.90150629]
[1769994519394,147.71286629,101.79,101.71,16.04470629]
[1769994519595,8.8511,101.78,101.71,16.04470629]
[1769994520098,402.08276629,101.79,101.71,24.90160629]
[1769994520296,539.75176629,101.79,101.71,24.90160629]
[1769994520497,147.71176629,101.79,101.71,16.04470629]
[1769994520697,8.8511,101.78,101.71,16.04470629]
[1769994521297,8.8519,101.77,101.71,16.04470629]
[1769994521596,137.684,101.78,101.68,16.05237881]
[1769994521800,8.8529,101.76,101.68,16.05237881]
[1769994522294,10.04276629,101.77,101.68,153.86967881]
[1769994522499,388.9431,101.78,101.69,16.07827095]
[1769994522701,10.04276629,101.81,101.72,16.07827095]
[1769994523103,137.6564,101.8,101.72,16.07827095]
[1769994523293,10.04276629,101.81,101.72,16.07827095]
[1769994523599,295.40586629,101.81,101.72,16.07827095]
[1769994524096,147.72,101.81,101.73,16.07827095]
[1769994524496,8.8496,101.8,101.73,16.07827095]
[1769994524697,285.3627,101.81,101.73,16.07827095]
[1769994524903,137.6555,101.8,101.73,16.07827095]
[1769994525098,147.71156629,101.79,101.7,16.09172101]
[1769994525396,284.43156629,101.79,101.7,16.09172101]
[1769994525699,137.6825,101.78,101.67,137.8182]
[1769994525898,10.04276629,101.77,101.68,153.90842101]
[1769994526105,10.04276629,101.77,101.69,16.09152938]
[1769994526304,8.8527,101.76,101.67,16.09152938]
[1769994526508,351.32,101.77,101.68,16.08446684]
[1769994526999,351.32,101.77,101.7,16.08446684]
[1769994527703,8.853,101.76,101.7,16.08446684]
[1769994528006,8.853,101.76,101.68,16.08446684]
[1769994528210,18.89576629,101.76,101.68,16.08446684]
[1769994528707,351.32,101.77,101.69,16.09301582]
[1769994529201,18.89346629,101.79,101.71,16.09301582]
[1769994529407,8.8507,101.79,101.72,16.09301582]
[1769994530198,8.8507,101.79,101.72,24.94911582]
[1769994530403,8.8507,101.79,101.72,16.09301582]
[1769994530704,8.8515,101.78,101.72,16.09301582]
[1769994530906,8.8515,101.78,101.7,16.09350129]
[1769994531401,8.8515,101.78,101.71,8.8569]
[1769994531605,29.28,101.8,101.72,16.09350129]
[1769994531910,8.8497,101.8,101.72,16.09350129]
[1769994532308,42.23,101.81,101.74,16.09350129]
[1769994532799,42.23,101.81,101.76,16.03428727]
[1769994532998,147.61686629,101.86,101.77,16.03428727]
[1769994533198,137.5741,101.86,101.77,16.03428727]
[1769994533404,146.4341,101.85,101.77,16.03428727]
[1769994534009,8.8461,101.84,101.77,16.03428727]
[1769994534308,147.66386629,101.83,101.74,14.78302502]
[1769994534609,8.8487,101.81,101.74,14.78302502]
[1769994535010,146.4909,101.81,101.74,14.78302502]
[1769994535505,137.6606,101.8,101.71,23.6270734]
[1769994535709,297.7006,101.8,101.72,14.7706734]
[1769994536009,146.5204,101.79,101.72,14.7706734]
[1769994536208,137.6701,101.79,101.72,14.7706734]
[1769994537308,8.8511,101.78,101.72,14.7706734]
[1769994538514,8.8511,101.78,101.7,23.59899264]
[1769994538707,8.8511,101.78,101.71,14.74129264]
[1769994538908,147.71266629,101.79,101.71,14.74129264]
[1769994539214,529.7899,101.79,101.71,14.74129264]
[1769994540418,137.64,101.82,101.73,14.72000529]
[1769994540604,137.6428,101.81,101.72,14.72000529]
[1769994540810,137.7134,101.76,101.69,14.72000529]
[1769994541012,10.04276629,101.75,101.69,14.72000529]
[1769994541209,10.04276629,101.77,101.69,14.72000529]
[1769994541413,357.54,101.77,101.7,14.72000529]
[1769994541917,137.7096,101.76,101.67,14.72000529]
[1769994542116,505.27946629,101.77,101.68,14.72000529]
[1769994542315,147.76826629,101.75,101.68,14.72000529]
[1769994542516,10.04276629,101.75,101.68,14.72000529]
[1769994542716,147.76676629,101.75,101.68,14.72000529]
[1769994543216,147.76676629,101.75,101.65,23.69267388]
[1769994543512,147.76676629,101.75,101.62,10.04276629]
[1769994543513,137.7944,101.7,101.62,14.83117388]
[1769994543712,146.6805,101.68,101.6,17.61066024]
[1769994543910,147.87766629,101.67,101.6,17.61066024]
[1769994544108,133.86,101.69,101.6,2.77948636]
[1769994544109,147.90786629,101.65,101.6,2.77948636]
[1769994544314,147.92976629,101.63,101.54,14.83117388]
[1769994544517,10.04276629,101.64,101.55,14.88600448]
[1769994544717,146.7498,101.63,101.55,14.88600448]
[1769994544917,146.7498,101.63,101.52,14.88600448]
[1769994544918,147.94236629,101.62,101.52,14.88600448]
[1769994545109,147.94236629,101.62,101.53,14.88600448]
[1769994545415,10.04276629,101.6,101.53,14.88600448]
[1769994545910,264.0585,101.63,101.54,14.88600448]
[1769994546116,137.9129,101.61,101.54,14.88600448]
[1769994546418,126.16,101.63,101.51,14.88600448]
[1769994546419,156.83736629,101.6,101.51,14.88600448]
[1769994546619,137.9444,101.59,101.51,14.88600448]
[1769994546913,138.0343,101.53,101.44,14.946842]
[1769994547122,137.9919,101.56,101.46,138.1147]
[1769994547422,10.04276629,101.57,101.48,14.946842]
[1769994547619,391.9662,101.58,101.49,14.9464987]
[1769994547923,391.9545,101.58,101.49,14.9464987]
[1769994548214,137.9682,101.57,101.49,14.9464987]
[1769994548410,62.0,101.62,101.46,8.8782]
[1769994548411,10.04276629,101.55,101.46,14.9464987]
[1769994548616,491.07706629,101.55,101.46,14.9464987]
[1769994548812,137.9448,101.59,101.49,153.04459635]
[1769994549020,530.3316,101.6,101.51,14.97349635]
[1769994549213,137.9409,101.59,101.51,14.97349635]
[1769994549420,137.9598,101.58,101.51,14.97349635]
[1769994549717,146.8102,101.59,101.5,14.97349635]
[1769994550315,392.4,101.6,101.51,153.01689635]
[1769994550515,137.8982,101.63,101.53,14.97728584]
[1769994550714,137.9134,101.61,101.53,14.97728584]
[1769994550915,146.765,101.62,101.53,14.97728584]
[1769994551213,137.9278,101.6,101.5,161.90758584]
[1769994551413,147.98806629,101.59,101.51,14.97728584]
[1769994551612,137.9697,101.57,101.48,14.97728584]
[1769994551815,148.01246629,101.57,101.48,14.97728584]
[1769994552012,10.04276629,101.57,101.49,14.97728584]
[1769994552218,345.0238,101.58,101.49,14.97728584]
[1769994552414,148.01136629,101.57,101.47,14.99270405]
[1769994552610,10.04276629,101.57,101.48,153.07930405]
[1769994552815,336.158,101.58,101.51,14.99270405]
[1769994552816,198.2,101.58,101.51,14.99270405]
[1769994553620,147.96756629,101.61,101.51,153.03930405]
[1769994553821,156.83336629,101.61,101.51,14.99270405]
[1769994554215,8.8658,101.61,101.52,14.99270405]
[1769994554816,147.95966629,101.61,101.52,14.99270405]
[1769994555015,137.9298,101.6,101.5,138.0615]
[1769994555416,10.04276629,101.59,101.49,161.94131558]
[1769994555618,137.9634,101.58,101.5,14.99021558]
[1769994555813,137.9634,101.58,101.41,167.453]
[1769994555814,148.08106629,101.52,101.44,14.99021558]
[1769994556014,392.68,101.52,101.44,153.13121558]
[1769994556218,392.68,101.52,101.44,153.13381558]
[1769994556416,137.995,101.55,101.46,14.99021558]
[1769994556620,138.0092,101.54,101.46,14.99021558]
[1769994556814,148.07916629,101.52,101.43,14.98792137]
[1769994557012,156.95286629,101.52,101.43,14.98792137]
[1769994557216,156.95286629,101.52,101.44,14.98792137]
[1769994557217,10.04276629,101.52,101.44,14.98792137]
[1769994557417,138.0258,101.53,101.44,14.98792137]
[1769994557825,138.0221,101.53,101.45,14.98792137]
[1769994558229,8.8728,101.53,101.45,14.98792137]
[1769994558519,540.74776629,101.56,101.46,153.10172137]
[1769994558727,540.74776629,101.56,101.47,14.99344352]
[1769994559022,137.9401,101.59,101.5,14.99344352]
[1769994559219,137.9134,101.61,101.52,14.99344352]
[1769994559620,530.7418,101.62,101.53,14.99344352]
[1769994559819,137.9173,101.61,101.53,14.99344352]
[1769994560023,392.84,101.62,101.53,14.99344352]
[1769994560024,137.9267,101.6,101.53,14.99344352]
[1769994560423,137.9267,101.6,101.5,23.84446316]
[1769994560424,146.8123,101.59,101.5,23.84446316]
[1769994560623,137.9564,101.58,101.5,14.96956316]
[1769994560827,137.9738,101.57,101.5,14.96956316]
[1769994561526,138.0128,101.54,101.45,14.96956316]
[1769994561724,138.0078,101.54,101.45,14.96956316]
[1769994562026,138.0228,101.53,101.45,14.96956316]
[1769994562223,146.9131,101.52,101.45,14.96956316]
[1769994562720,8.8742,101.52,101.45,14.96956316]
[1769994562916,8.8749,101.51,101.43,14.94464856]
[1769994563119,146.9239,101.51,101.43,14.94464856]
[1769994563319,146.9393,101.5,101.43,14.94464856]
[1769994563519,8.8758,101.5,101.43,14.94464856]
[1769994563923,146.9531,101.49,101.4,14.94464856]
[1769994564226,138.0928,101.48,101.4,14.94464856]
[1769994564528,148.12056629,101.49,101.4,14.94464856]
[1769994564828,8.8759,101.5,101.4,153.14184856]
[1769994565023,138.0608,101.51,101.42,14.93262755]
[1769994565625,8.8746,101.51,101.43,14.93262755]
[1769994565820,10.04276629,101.53,101.43,14.93262755]
[1769994566022,138.0219,101.53,101.44,14.93262755]
[1769994566227,138.0349,101.52,101.44,14.93262755]
[1769994566828,146.9089,101.52,101.44,14.93262755]
[1769994567422,138.0296,101.53,101.44,14.93262755]
[1769994567625,460.6248,101.55,101.45,14.93445929]
[1769994568129,8.8722,101.54,101.45,14.93445929]
[1769994568528,138.0364,101.52,101.45,14.93445929]
[1769994568723,148.06246629,101.54,101.45,14.93445929]
[1769994569125,8.8739,101.52,101.45,14.93445929]
[1769994569322,8.8739,101.52,101.4,158.64276629]
[1769994569323,138.0497,101.51,101.42,15.0328339]
[1769994569628,422.32,101.56,101.42,15.0328339]
[1769994569629,138.0757,101.49,101.42,15.0328339]
[1769994569829,10.04276629,101.5,101.42,15.0328339]
[1769994570023,138.0758,101.49,101.42,15.0328339]
[1769994570224,138.0758,101.49,101.39,15.0328339]
[1769994570427,148.10556629,101.5,101.4,15.02625463]
[1769994570731,138.0628,101.5,101.41,15.02625463]
[1769994571429,167.2715,101.56,101.43,15.02625463]
[1769994571430,141.02,101.51,101.43,15.02625463]
[1769994571620,141.02,101.51,101.42,138.1703]
[1769994571621,287.54276629,101.56,101.45,15.02625463]
[1769994571825,8.8739,101.52,101.45,15.02625463]
[1769994572229,146.9095,101.52,101.45,15.02625463]
[1769994572525,8.8739,101.52,101.45,15.02625463]
[1769994573135,8.8722,101.54,101.45,15.02625463]
[1769994573734,287.54276629,101.56,101.47,15.02586384]
[1769994573735,286.3706,101.56,101.47,15.02586384]
[1769994573928,137.9945,101.55,101.47,15.02586384]
[1769994574128,146.8813,101.54,101.47,15.02586384]
[1769994574430,146.8813,101.54,101.44,153.16936384]
[1769994574431,148.11139183,101.54,101.44,153.16936384]
[1769994574934,8.873,101.53,101.45,8.8795]
[1769994575533,146.8963,101.53,101.44,15.02586384]
[1769994575727,10.10369183,101.54,101.44,15.02586384]
[1769994575728,138.0352,101.52,101.44,15.02586384]
[1769994576128,541.24389183,101.54,101.44,23.90616384]
[1769994577225,138.0212,101.53,101.44,23.90616384]
[1769994578232,8.8738,101.52,101.44,162.04976384]
[1769994578440,137.9781,101.57,101.47,15.01929422]
[1769994578635,137.9781,101.57,101.48,15.01929422]
[1769994578832,137.9953,101.55,101.48,15.01929422]
[1769994579140,138.01,101.54,101.45,15.01929422]
[1769994579439,8.8738,101.52,101.45,15.01929422]
[1769994580331,8.8746,101.51,101.45,15.01929422]
[1769994580529,138.0408,101.52,101.45,15.01929422]
[1769994580729,148.14449183,101.52,101.42,15.02123293]
[1769994581534,138.0633,101.5,101.42,15.02123293]
[1769994581735,138.0487,101.51,101.42,15.02123293]
[1769994582142,8.8764,101.49,101.42,23.90353293]
[1769994582337,10.10369183,101.52,101.38,4.49474377]
[1769994582536,138.0757,101.49,101.41,15.00664446]
[1769994582936,8.8772,101.48,101.4,8.8835]
[1769994583240,8.8772,101.48,101.4,23.89014446]
[1769994583441,138.1029,101.47,101.4,15.00664446]
[1769994583639,138.1305,101.45,101.38,2.77948636]
[1769994583946,167.3829,101.47,101.38,164.89593082]
[1769994583947,8.8785,101.47,101.38,164.89593082]
[1769994584138,138.1071,101.47,101.38,17.78613082]
[1769994584436,157.07329183,101.48,101.38,26.67173082]
[1769994584942,393.18,101.49,101.4,15.00263451]
[1769994585338,540.1354,101.49,101.4,23.88643451]
[1769994585544,138.103,101.47,101.38,17.78212087]
[1769994586039,146.9814,101.47,101.38,17.78212087]
[1769994586234,138.103,101.47,101.38,17.78212087]
[1769994586436,148.22619183,101.46,101.38,17.78212087]
[1769994586841,157.10539183,101.46,101.38,17.78212087]
[1769994587142,18.98289183,101.46,101.38,17.78212087]
[1769994587342,138.1311,101.45,101.38,2.77948636]
[1769994587542,148.22369183,101.46,101.38,2.77948636]
[1769994588040,148.19549183,101.48,101.39,14.97471751]
[1769994588437,138.1046,101.47,101.39,14.97471751]
[1769994588638,148.22329183,101.46,101.38,2.77948636]
[1769994589041,10.10369183,101.46,101.38,17.75301274]
[1769994589244,138.1046,101.47,101.38,17.75301274]
[1769994589550,148.15059183,101.52,101.41,153.15742638]
[1769994589739,531.3394,101.51,101.42,14.97352638]
[1769994589942,393.28,101.51,101.42,14.97352638]